[Event "Shanghai COITCT 2019"]
[Site "Shanghai"]
[Date "2019.09.17"]
[Round "8.13"]
[White "Nigmatov, Ortik"]
[Black "Xu, Yinglun"]
[Result "0-1"]
[ECO "C11"]
[WhiteElo "2482"]
[BlackElo "2565"]
[Annotator "ChessBase"]
[PlyCount "53"]
[EventDate "2019.09.15"]
[EventType "team-tourn"]
[EventCountry "CHN"]
[SourceTitle "playchess.com"]
[Source "ChessBase"]
[SourceQuality "1"]
[TimeControl "1500+10"]

1. e4 {[%emt 0:00:00]} e6 {[%emt 0:00:00]} 2. d4 {[%emt 0:00:00]} d5 {[%emt 0:00:00]} 3. Nc3 {[%emt 0:00:01]} Nf6 {[%emt 0:00:00]} 4. e5 {[%emt 0:00:01]} Nfd7 {[%emt 0:00:00]} 5. Nce2 {[%emt 0:00:01]} c5 {[%emt 0:00:00]} 6. c3 {[%emt 0:00:01]} cxd4 {[%emt 0:00:04]} 7. cxd4 {[%emt 0:00:02]} f6 {[%emt 0:00:01]} 8. exf6 {[%emt 0:00:15]} Nxf6 {[%emt 0:00:02]} 9. Nf3 {[%emt 0:00:16]} Nc6 {[%emt 0:00:02]} 10. Nc3 {[%emt 0:00:26]} Bd6 {[%emt 0:00:03]} 11. Bb5 {[%emt 0:00:09]} Bd7 {[%emt 0:00:15]} 12. O-O {[%emt 0:00:09]} O-O {[%emt 0:00:02]} 13. Re1 {[%emt 0:00:02]} Qc7 {[%emt 0:01:29]} 14. Bg5 {[%emt 0:00:16]} Rae8 {[%emt 0:00:18]} 15. Bh4 {[%emt 0:00:32]} a6 {[%emt 0:01:29]} 16. Bd3 {[%emt 0:00:16]} Kh8 {[%emt 0:00:46]} 17. Rc1 {[%emt 0:01:12]} Bf4 {[%emt 0:00:05]} 18. Bg3 {[%emt 0:01:08]} Nh5 {[%emt 0:03:02]} 19. Bxf4 {[%emt 0:01:20]} Qxf4 {[%emt 0:00:48]} 20. Re3 {[%emt 0:01:44]} Nxd4 {[%emt 0:02:05]} 21. Ne2 {[%emt 0:03:13]} Nxf3+ {[%emt 0:01:13]} 22. Rxf3 {[%emt 0:00:01]} Qg5 {[%emt 0:01:05]} 23. Rxf8+ {[%emt 0:01:17]} Rxf8 {[%emt 0:00:01]} 24. Rc7 {[%emt 0:00:42]} Bc6 {[%emt 0:00:13]} 25. Nd4 {[%emt 0:00:12]} Nf4 {[%emt 0:00:56]} 26. Qf3 {[%emt 0:00:01]} Qe5 {[%emt 0:00:55]} 27. Qd1 {[%emt 0:00:19]} 0-1

[Event "Shanghai COITCT 2019"]
[Site "Shanghai"]
[Date "2019.09.17"]
[Round "8.14"]
[White "Bai, Jinshi"]
[Black "Kurbonboeva, Sarvinoz"]
[Result "1-0"]
[ECO "D61"]
[WhiteElo "2591"]
[BlackElo "2262"]
[Annotator "ChessBase"]
[PlyCount "111"]
[EventDate "2019.09.15"]
[EventType "team-tourn"]
[EventCountry "CHN"]
[SourceTitle "playchess.com"]
[Source "ChessBase"]
[SourceQuality "1"]
[TimeControl "1500+10"]

1. Nf3 {[%emt 0:00:00]} d5 {[%emt 0:00:00]} 2. d4 {[%emt 0:00:05]} Nf6 {[%emt 0:00:09]} 3. c4 {[%emt 0:00:03]} c6 {[%emt 0:00:03]} 4. Nc3 {[%emt 0:00:07]} e6 {[%emt 0:00:09]} 5. Bg5 {[%emt 0:00:06]} Be7 {[%emt 0:00:59]} 6. e3 {[%emt 0:00:05]} Nbd7 {[%emt 0:00:15]} 7. Qc2 {[%emt 0:01:18]} O-O {[%emt 0:00:08]} 8. Rd1 {[%emt 0:00:02]} b6 {[%emt 0:02:13]} 9. Be2 {[%emt 0:01:02]} Bb7 {[%emt 0:00:06]} 10. O-O {[%emt 0:00:04]} Rc8 {[%emt 0:00:28]} 11. Qb1 {[%emt 0:00:30]} c5 {[%emt 0:00:17]} 12. dxc5 {[%emt 0:01:04]} Nxc5 {[%emt 0:00:03]} 13. Ne5 {[%emt 0:03:00]} Nfe4 {[%emt 0:03:02]} 14. Nxe4 {[%emt 0:01:57]} Nxe4 {[%emt 0:00:03]} 15. Bf4 {[%emt 0:00:21]} Qe8 {[%emt 0:02:04]} 16. cxd5 {[%emt 0:02:03]} Bxd5 {[%emt 0:00:16]} 17. f3 {[%emt 0:00:21]} Nf6 {[%emt 0:00:56]} 18. e4 {[%emt 0:00:02]} Bc5+ {[%emt 0:00:12]} 19. Kh1 {[%emt 0:00:02]} Bb7 {[%emt 0:00:02]} 20. Nc4 {[%emt 0:00:23]} Qe7 {[%emt 0:00:38]} 21. b4 {[%emt 0:02:30]} Nh5 {[%emt 0:01:05]} 22. Be5 {[%emt 0:01:24]} Bxb4 {[%emt 0:00:28]} 23. Nd6 {[%emt 0:00:04]} Bxd6 {[%emt 0:00:06]} 24. Bxd6 {[%emt 0:00:04]} Qh4 {[%emt 0:00:10]} 25. g3 {[%emt 0:00:22]} Qg5 {[%emt 0:01:57]} 26. Bxf8 {[%emt 0:00:15]} Nxg3+ {[%emt 0:00:02]} 27. hxg3 {[%emt 0:00:07]} Qxg3 {[%emt 0:00:40]} 28. Bd6 {[%emt 0:01:11]} e5 {[%emt 0:00:00]} 29. Bxe5 {[%emt 0:00:59]} Qxe5 {[%emt 0:00:00]} 30. Qb5 {[%emt 0:00:03]} Qg3 {[%emt 0:00:01]} 31. Qh5 {[%emt 0:00:35]} g6 {[%emt 0:00:14]} 32. Qg4 {[%emt 0:00:20]} Qe5 {[%emt 0:00:17]} 33. Rf2 {[%emt 0:01:22]} Rc5 {[%emt 0:00:31]} 34. Rh2 {[%emt 0:00:13]} h5 {[%emt 0:00:14]} 35. Qh4 {[%emt 0:00:02]} Rc2 {[%emt 0:00:18]} 36. Qd8+ {[%emt 0:00:22]} Kh7 {[%emt 0:00:19]} 37. Qd6 {[%emt 0:00:43]} Qb2 {[%emt 0:00:42]} 38. Qd7 {[%emt 0:00:50]} Kg7 {[%emt 0:00:07]} 39. Qd4+ {[%emt 0:01:06]} Qxd4 {[%emt 0:00:04]} 40. Rxd4 {[%emt 0:00:01]} Rxa2 {[%emt 0:00:02]} 41. Rd7 {[%emt 0:00:02]} Ra1+ {[%emt 0:00:14]} 42. Kg2 {[%emt 0:00:01]} Bc8 {[%emt 0:00:05]} 43. Rc7 {[%emt 0:00:08]} Be6 {[%emt 0:00:08]} 44. Rh1 {[%emt 0:00:11]} Ra2 {[%emt 0:00:04]} 45. Kf2 {[%emt 0:00:02]} b5 {[%emt 0:00:10]} 46. Ke3 {[%emt 0:00:26]} b4 {[%emt 0:00:16]} 47. Rhc1 {[%emt 0:00:54]} b3 {[%emt 0:02:10]} 48. Bc4 {[%emt 0:00:37]} Bxc4 {[%emt 0:00:11]} 49. R1xc4 {[%emt 0:00:17]} a5 {[%emt 0:00:02]} 50. Rb7 {[%emt 0:00:18]} a4 {[%emt 0:00:34]} 51. e5 {[%emt 0:00:06]} b2 {[%emt 0:00:26]} 52. Kf4 {[%emt 0:01:50]} a3 {[%emt 0:00:18]} 53. e6 {[%emt 0:00:15]} Ra1 {[%emt 0:00:03]} 54. e7 {[%emt 0:00:43]} Re1 {[%emt 0:00:49]} 55. Re4 {[%emt 0:00:02]} g5+ {[%emt 0:00:41]} 56. Kf5 {[%emt 0:00:17]} 1-0

[Event "Shanghai COITCT 2019"]
[Site "Shanghai"]
[Date "2019.09.17"]
[Round "8.15"]
[White "Baymuratova, Sevara"]
[Black "Wen, Yang"]
[Result "0-1"]
[ECO "A42"]
[WhiteElo "2126"]
[BlackElo "2586"]
[Annotator "ChessBase"]
[PlyCount "102"]
[EventDate "2019.09.15"]
[EventType "team-tourn"]
[EventCountry "CHN"]
[SourceTitle "playchess.com"]
[Source "ChessBase"]
[SourceQuality "1"]
[TimeControl "1500+10"]

1. d4 {[%emt 0:00:00]} d6 {[%emt 0:00:00]} 2. Nf3 {[%emt 0:00:00]} g6 {[%emt 0:00:00]} 3. c4 {[%emt 0:00:06]} Bg7 {[%emt 0:00:00]} 4. g3 {[%emt 0:00:11]} e5 {[%emt 0:00:18]} 5. Nc3 {[%emt 0:00:04]} Nd7 {[%emt 0:00:06]} 6. Bg2 {[%emt 0:00:08]} Ne7 {[%emt 0:00:12]} 7. O-O {[%emt 0:00:12]} O-O {[%emt 0:00:02]} 8. e4 {[%emt 0:01:45]} exd4 {[%emt 0:00:20]} 9. Nxd4 {[%emt 0:00:02]} Nc6 {[%emt 0:00:02]} 10. Nde2 {[%emt 0:02:02]} a5 {[%emt 0:01:17]} 11. Be3 {[%emt 0:00:29]} Nde5 {[%emt 0:00:47]} 12. b3 {[%emt 0:00:23]} a4 {[%emt 0:00:02]} 13. h3 {[%emt 0:02:09]} axb3 {[%emt 0:00:45]} 14. axb3 {[%emt 0:00:02]} Rxa1 {[%emt 0:00:03]} 15. Qxa1 {[%emt 0:00:03]} f5 {[%emt 0:00:02]} 16. f4 {[%emt 0:00:41]} Nd3 {[%emt 0:00:48]} 17. Qd1 {[%emt 0:00:27]} Ncb4 {[%emt 0:00:53]} 18. Bd4 {[%emt 0:01:03]} Bxd4+ {[%emt 0:01:21]} 19. Nxd4 {[%emt 0:00:02]} c6 {[%emt 0:00:06]} 20. Kh2 {[%emt 0:00:46]} Qf6 {[%emt 0:00:02]} 21. Nde2 {[%emt 0:00:40]} Nc5 {[%emt 0:00:03]} 22. Qd2 {[%emt 0:00:50]} Re8 {[%emt 0:00:02]} 23. Rd1 {[%emt 0:00:53]} Nbd3 {[%emt 0:01:27]} 24. b4 {[%emt 0:02:19]} Nxb4 {[%emt 0:00:17]} 25. Qxd6 {[%emt 0:00:09]} Qxd6 {[%emt 0:00:08]} 26. Rxd6 {[%emt 0:00:01]} fxe4 {[%emt 0:00:03]} 27. g4 {[%emt 0:00:36]} e3 {[%emt 0:00:43]} 28. Nd4 {[%emt 0:01:02]} Kf7 {[%emt 0:01:01]} 29. g5 {[%emt 0:02:04]} Ke7 {[%emt 0:00:10]} 30. Rf6 {[%emt 0:00:10]} Rd8 {[%emt 0:00:03]} 31. Nce2 {[%emt 0:00:23]} Ne6 {[%emt 0:00:21]} 32. Nf3 {[%emt 0:00:26]} Ng7 {[%emt 0:00:03]} 33. Ne5 {[%emt 0:00:26]} Be6 {[%emt 0:00:03]} 34. Bf3 {[%emt 0:01:29]} Ne8 {[%emt 0:00:32]} 35. Nxg6+ {[%emt 0:03:10]} hxg6 {[%emt 0:00:03]} 36. Rxg6 {[%emt 0:00:02]} Rd2 {[%emt 0:00:14]} 37. Kg3 {[%emt 0:01:05]} Nd6 {[%emt 0:00:08]} 38. Rg7+ {[%emt 0:03:03]} Kf8 {[%emt 0:00:03]} 39. Rh7 {[%emt 0:00:03]} Bg8 {[%emt 0:00:23]} 40. Rc7 {[%emt 0:00:16]} Na6 {[%emt 0:00:09]} 41. Rd7 {[%emt 0:01:34]} Nf5+ {[%emt 0:00:04]} 42. Kg4 {[%emt 0:00:01]} Nh6+ {[%emt 0:00:09]} 43. gxh6 {[%emt 0:00:30]} Rxd7 {[%emt 0:00:03]} 44. f5 {[%emt 0:00:14]} Bxc4 {[%emt 0:01:07]} 45. Nf4 {[%emt 0:00:06]} Rd4 {[%emt 0:00:46]} 46. Kg5 {[%emt 0:00:19]} Rxf4 {[%emt 0:00:06]} 47. Kxf4 {[%emt 0:00:07]} e2 {[%emt 0:00:09]} 48. Bxe2 {[%emt 0:00:16]} Bxe2 {[%emt 0:00:02]} 49. Ke5 {[%emt 0:00:02]} Kg8 {[%emt 0:00:13]} 50. Ke6 {[%emt 0:00:09]} Bc4+ {[%emt 0:00:05]} 51. Ke7 {[%emt 0:00:01]} b5 {[%emt 0:00:06]} 0-1

[Event "Shanghai COITCT 2019"]
[Site "Shanghai"]
[Date "2019.09.18"]
[Round "9.3"]
[White "Wen, Yang"]
[Black "Antonova, Nadezhda"]
[Result "1-0"]
[ECO "A45"]
[WhiteElo "2586"]
[BlackElo "1930"]
[Annotator "RC"]
[PlyCount "35"]
[EventDate "2019.09.15"]
[EventType "team-tourn"]
[EventCountry "CHN"]
[SourceTitle "playchess.com"]
[Source "ChessBase"]
[SourceQuality "1"]
[TimeControl "1500+10"]

1. d4 {[%emt 0:00:00]} Nf6 {[%emt 0:00:01]} 2. Bg5 {[%emt 0:00:03]} Ne4 {[%emt 0:00:18]} 3. Bf4 {[%emt 0:00:03]} d5 {[%emt 0:01:05]} 4. e3 {[%emt 0:00:02]} c5 {[%emt 0:00:56]} 5. Bd3 {[%emt 0:00:02]} Qb6 {[%emt 0:01:18]} 6. Bxe4 {[%emt 0:00:24]} Qxb2 {[%emt 0:06:12]} 7. Bxd5 {[%emt 0:00:02]} Qxa1 {[%emt 0:00:39]} 8. Nf3 {[%emt 0:00:03]} e6 {[%emt 0:01:51]} 9. Bb3 {[%emt 0:00:07]} Qb2 {[%emt 0:01:20]} 10. Ne5 {[%emt 0:00:55]} cxd4 {[%emt 0:04:09]} 11. Nd3 {[%emt 0:03:15]} Qa1 {[%emt 0:00:09]} 12. O-O {[%emt 0:00:05]} Nc6 {[%emt 0:00:43]} 13. c3 {[%emt 0:00:23]} dxc3 {[%emt 0:04:36]} 14. Qc2 {[%emt 0:00:02]} Nb4 {[%emt 0:00:35]} 15. Ba4+ {[%emt 0:01:16]} Kd8 {[%emt 0:02:36]} 16. Qd1 {[%emt 0:00:02]} c2 {[%emt 0:00:33]} 17. Bxc2 {[%emt 0:00:13]} Nxc2 {[%emt 0:00:32]} 18. Be5 {[%emt 0:00:46]} 1-0

[Event "Shanghai COITCT 2019"]
[Site "Shanghai"]
[Date "2019.09.18"]
[Round "9.10"]
[White "Xu, Zhihang"]
[Black "Idani, Pouya"]
[Result "0-1"]
[ECO "E52"]
[WhiteElo "2506"]
[BlackElo "2586"]
[Annotator "RC"]
[PlyCount "78"]
[EventDate "2019.09.15"]
[EventType "team-tourn"]
[EventCountry "CHN"]
[SourceTitle "playchess.com"]
[Source "ChessBase"]
[SourceQuality "1"]
[TimeControl "1500+10"]

1. c4 {[%emt 0:00:00]} e6 {[%emt 0:00:00]} 2. d4 {[%emt 0:00:00]} Nf6 {[%emt 0:00:00]} 3. Nc3 {[%emt 0:00:20]} Bb4 {[%emt 0:00:00]} 4. e3 {[%emt 0:00:02]} O-O {[%emt 0:00:08]} 5. Bd3 {[%emt 0:00:01]} d5 {[%emt 0:00:13]} 6. Nf3 {[%emt 0:00:02]} b6 {[%emt 0:00:34]} 7. O-O {[%emt 0:00:06]} Ba6 {[%emt 0:00:02]} 8. Qe2 {[%emt 0:02:32]} Nbd7 {[%emt 0:03:10]} 9. Bd2 {[%emt 0:00:37]} Qe7 {[%emt 0:03:04]} 10. Rfd1 {[%emt 0:01:05]} Rfe8 {[%emt 0:01:02]} 11. Rac1 {[%emt 0:00:27]} c6 {[%emt 0:03:05]} 12. b3 {[%emt 0:00:33]} Rad8 {[%emt 0:00:43]} 13. cxd5 {[%emt 0:03:47]} Bxd3 {[%emt 0:00:08]} 14. Qxd3 {[%emt 0:00:08]} exd5 {[%emt 0:00:06]} 15. Ne2 {[%emt 0:00:11]} Bxd2 {[%emt 0:01:12]} 16. Rxd2 {[%emt 0:00:01]} c5 {[%emt 0:00:10]} 17. dxc5 {[%emt 0:00:18]} Nxc5 {[%emt 0:00:02]} 18. Qd4 {[%emt 0:01:07]} h6 {[%emt 0:01:05]} 19. h3 {[%emt 0:00:23]} Qb7 {[%emt 0:00:22]} 20. Rdc2 {[%emt 0:00:37]} a5 {[%emt 0:00:16]} 21. Ng3 {[%emt 0:00:30]} Re6 {[%emt 0:01:16]} 22. Rd1 {[%emt 0:00:26]} Ree8 {[%emt 0:01:25]} 23. Nf5 {[%emt 0:00:41]} Qc6 {[%emt 0:01:22]} 24. Qf4 {[%emt 0:00:57]} Nfe4 {[%emt 0:01:24]} 25. N5d4 {[%emt 0:02:29]} Qd7 {[%emt 0:00:59]} 26. a3 {[%emt 0:01:51]} Rc8 {[%emt 0:00:34]} 27. Qf5 {[%emt 0:00:43]} Qb7 {[%emt 0:02:11]} 28. b4 {[%emt 0:00:18]} axb4 {[%emt 0:00:20]} 29. axb4 {[%emt 0:00:02]} Nd6 {[%emt 0:00:03]} 30. Qf4 {[%emt 0:00:58]} Nce4 {[%emt 0:00:01]} 31. Rdc1 {[%emt 0:00:36]} Rc4 {[%emt 0:00:19]} 32. b5 {[%emt 0:00:48]} Rec8 {[%emt 0:00:29]} 33. Nc6 {[%emt 0:00:42]} Rc5 {[%emt 0:01:17]} 34. Rxc5 {[%emt 0:00:21]} bxc5 {[%emt 0:00:03]} 35. Rxc5 {[%emt 0:00:23]} Re8 {[%emt 0:00:47]} 36. Rxd5 {[%emt 0:00:12]} Nxb5 {[%emt 0:00:02]} 37. Nfe5 {[%emt 0:00:26]} Nbc3 {[%emt 0:00:01]} 38. Qh4 {[%emt 0:02:14]} Nxd5 {[%emt 0:00:09]} 39. Qxe4 {[%emt 0:00:02]} Qxc6 {[%emt 0:00:01]} 0-1

[Event "Shanghai COITCT 2019"]
[Site "Shanghai"]
[Date "2019.09.18"]
[Round "9.14"]
[White "Zhigalko, Sergei"]
[Black "Zairbek kyzy, Begimai"]
[Result "1-0"]
[ECO "B12"]
[WhiteElo "2574"]
[BlackElo "1989"]
[Annotator "RC"]
[PlyCount "47"]
[EventDate "2019.09.15"]
[EventType "team-tourn"]
[EventCountry "CHN"]
[SourceTitle "playchess.com"]
[Source "ChessBase"]
[SourceQuality "1"]
[TimeControl "1500+10"]

1. e4 {[%emt 0:00:00]} c6 {[%emt 0:00:00]} 2. d4 {[%emt 0:00:00]} d5 {[%emt 0:00:00]} 3. e5 {[%emt 0:00:00]} Bf5 {[%emt 0:00:00]} 4. Nf3 {[%emt 0:00:00]} e6 {[%emt 0:00:00]} 5. Be2 {[%emt 0:00:00]} c5 {[%emt 0:00:00]} 6. Be3 {[%emt 0:00:01]} Qb6 {[%emt 0:00:49]} 7. Nc3 {[%emt 0:00:23]} Nc6 {[%emt 0:02:24]} 8. dxc5 {[%emt 0:00:06]} Qxb2 {[%emt 0:01:32]} 9. Nb5 {[%emt 0:00:09]} O-O-O {[%emt 0:00:12]} 10. O-O {[%emt 0:08:24]} Qxc2 {[%emt 0:00:12]} 11. Qe1 {[%emt 0:00:25]} Qa4 {[%emt 0:08:57]} 12. Nfd4 {[%emt 0:03:12]} Bg6 {[%emt 0:03:00]} 13. Qc3 {[%emt 0:02:09]} Kd7 {[%emt 0:01:58]} 14. Nd6 {[%emt 0:00:44]} Qa5 {[%emt 0:02:54]} 15. Qb2 {[%emt 0:01:52]} Bxd6 {[%emt 0:01:09]} 16. cxd6 {[%emt 0:00:15]} Qb4 {[%emt 0:00:27]} 17. Qxb4 {[%emt 0:00:40]} Nxb4 {[%emt 0:00:01]} 18. Rab1 {[%emt 0:00:03]} Bxb1 {[%emt 0:00:38]} 19. Rxb1 {[%emt 0:00:02]} a5 {[%emt 0:01:12]} 20. a3 {[%emt 0:00:04]} Nh6 {[%emt 0:01:56]} 21. axb4 {[%emt 0:00:03]} axb4 {[%emt 0:00:01]} 22. Rc1 {[%emt 0:01:14]} Ra8 {[%emt 0:01:01]} 23. Bb5+ {[%emt 0:00:12]} Kd8 {[%emt 0:00:03]} 24. Bg5+ {[%emt 0:00:02] Ng8} 1-0